bitfinex-derivatives/quotes_BTCF0:USTF0_20210105
["timestamp","ask_amount","ask_price","bid_price","bid_amount"]
[1609829059957,0.13632608,30884.0,30871.0,0.13632608]
[1609829061859,0.13632608,30884.0,30869.0,3.7238]
[1609829061860,3.9364,30891.0,30879.0,0.13632608]
[1609829062059,0.10325,30894.0,30879.0,0.13632608]
[1609829062260,0.10325,30894.0,30881.0,5.2914]
[1609829062860,0.13964,30903.0,30881.0,5.2914]
[1609829063061,4.8499,30913.0,30881.0,5.2914]
[1609829063863,0.13632608,30898.0,30895.0,0.13632608]
[1609829065562,0.12996,30905.0,30879.0,0.14113]
[1609829066164,0.12996,30905.0,30888.0,0.13632608]
[1609829066566,0.12996,30905.0,30879.0,0.14113]
[1609829067163,0.82156,30905.0,30879.0,0.14113]
[1609829067462,0.12996,30905.0,30879.0,0.14113]
[1609829067664,0.12996,30905.0,30872.0,0.11375]
[1609829068067,0.13632608,30887.0,30875.0,0.13632608]
[1609829070170,0.13632608,30887.0,30884.0,0.13632608]
[1609829070371,0.12586,30892.0,30884.0,0.13632608]
[1609829070971,0.12586,30892.0,30874.0,0.14171]
[1609829071571,0.6073,30892.0,30874.0,0.14171]
[1609829071972,0.73105,30892.0,30874.0,0.14171]
[1609829072170,0.13632608,30890.0,30889.0,0.13632608]
[1609829073574,0.13632608,30890.0,30874.0,0.14171]
[1609829073775,4.8092,30881.0,30874.0,0.14171]
[1609829074074,0.13632608,30890.0,30880.0,0.13632608]
[1609829074277,4.5947,30889.0,30880.0,0.13632608]
[1609829075978,4.5947,30889.0,30880.0,0.10722608]
[1609829076180,0.12375,30892.0,30886.0,0.13632608]
[1609829077283,0.0972,30903.0,30886.0,0.13632608]
[1609829078083,0.13632608,30887.0,30883.0,3.9577]
[1609829079185,0.0972,30903.0,30883.0,3.9577]
[1609829079384,0.12996,30905.0,30883.0,4.05683]
[1609829079889,0.2786,30913.0,30883.0,4.05683]
[1609829080088,0.13632608,30892.0,30888.0,0.13632608]
[1609829080887,0.13632608,30892.0,30891.0,4.1538]
[1609829081287,0.10609,30901.0,30891.0,4.1538]
[1609829082086,0.13632608,30896.0,30891.0,4.1538]
[1609829087203,0.10609,30901.0,30891.0,4.1538]
[1609829087396,0.13189,30919.0,30891.0,4.1538]
[1609829087599,0.13189,30919.0,30890.0,0.13632608]
[1609829087600,0.85713269,30920.0,30890.0,0.13632608]
[1609829087794,0.85713269,30920.0,30904.0,5.0445]
[1609829088204,0.85713269,30920.0,30914.0,0.13632608]
[1609829088595,0.57533269,30920.0,30919.0,4.4506]
[1609829088798,0.97356229,30925.0,30919.0,4.4506]
[1609829089399,0.97356229,30925.0,30914.0,0.13632608]
[1609829089603,0.97353745,30943.0,30928.0,4.8327]
[1609829090196,0.97353745,30943.0,30940.0,0.13632608]
[1609829091097,0.52823745,30943.0,30940.0,0.13632608]
[1609829092297,0.27193745,30943.0,30940.0,0.13632608]
[1609829092500,5.34152608,30951.0,30940.0,0.13632608]
[1609829092699,5.34152608,30951.0,30929.0,4.1915]
[1609829092899,5.48392608,30951.0,30929.0,4.1915]
[1609829093602,5.58102608,30951.0,30929.0,4.1915]
[1609829094203,0.13632608,30931.0,30929.0,4.32782608]
[1609829094403,0.26104608,30931.0,30929.0,4.32782608]
[1609829094603,0.12472,30931.0,30929.0,4.32782608]
[1609829094805,0.00852,30931.0,30929.0,4.32782608]
[1609829095405,0.09089,30939.0,30929.0,4.32782608]
[1609829095608,0.09089,30939.0,30929.0,0.13632608]
[1609829095806,0.09089,30939.0,30937.0,3.9159]
[1609829096105,0.09089,30939.0,30938.0,0.13632608]
[1609829098309,0.09089,30939.0,30933.0,4.8623]
[1609829099009,0.09089,30939.0,30912.0,4.0712]
[1609829099208,0.09089,30939.0,30910.0,0.10331]
[1609829099408,0.09089,30939.0,30904.0,1.83720745]
[1609829099609,0.09089,30939.0,30922.0,3.9836]
[1609829099810,0.13632608,30942.0,30922.0,3.9836]
[1609829100613,0.23322608,30942.0,30912.0,0.11018]
[1609829100812,0.13632608,30928.0,30920.0,3.7666]
[1609829101011,0.24168608,30928.0,30913.0,0.13632608]
[1609829101212,0.24168608,30928.0,30919.0,4.5288]
[1609829102812,0.24168608,30928.0,30927.0,0.13632608]
[1609829103013,0.24168608,30928.0,30919.0,4.5288]
[1609829103412,0.24168608,30928.0,30899.0,6.5327]
[1609829103413,0.24168608,30928.0,30894.0,0.11103]
[1609829103614,0.24168608,30928.0,30900.0,4.6989]
[1609829104313,0.24168608,30928.0,30920.0,0.125]
[1609829104513,0.6204,30926.0,30920.0,0.125]
[1609829104914,0.13632608,30921.0,30920.0,0.125]
[1609829105114,0.25233608,30921.0,30920.0,0.125]
[1609829105914,0.11601,30921.0,30920.0,0.125]
[1609829106517,0.10536,30928.0,30920.0,0.125]
[1609829106716,0.1331,30942.0,30920.0,0.125]
[1609829106921,0.13632608,30942.0,30927.0,5.0909]
[1609829107119,0.1424,30951.0,30927.0,5.0909]
[1609829107319,0.2762,30953.0,30920.0,0.125]
[1609829107520,1.0873963,30955.0,30920.0,0.25041]
[1609829107721,0.97071318,30963.0,30939.0,5.2943]
[1609829108324,0.2774,30966.0,30939.0,5.2943]
[1609829108924,0.41372608,30966.0,30957.0,0.13632608]
[1609829109122,0.41372608,30966.0,30934.0,0.0923]
[1609829109323,0.54917608,30966.0,30955.0,4.3001]
[1609829109725,0.27177608,30966.0,30955.0,4.3001]
[1609829110831,0.13632608,30961.0,30955.0,4.3001]
[1609829111425,0.13545,30966.0,30955.0,4.3001]
[1609829113129,0.27177608,30966.0,30965.0,0.13632608]
[1609829113530,0.27177608,30966.0,30955.0,4.3001]
[1609829115129,0.13632608,30956.0,30955.0,4.43642608]
[1609829115330,0.09392,30956.0,30955.0,4.43642608]
[1609829115531,0.09392,30956.0,30955.0,0.13632608]
[1609829115729,0.09392,30956.0,30955.0,5.54072608]
[1609829118030,0.13545,30966.0,30955.0,5.54072608]
[1609829118230,0.13632608,30972.0,30955.0,5.54072608]
[1609829119131,0.13632608,30972.0,30971.0,0.13632608]
[1609829120833,0.2854,30988.0,30971.0,3.82092608]
[1609829121235,4.7566,31006.0,30987.0,0.13632608]
[1609829121436,0.2838,31012.0,30987.0,0.13632608]
[1609829121637,0.2718,31009.0,30987.0,0.13632608]
[1609829122636,0.1771,31018.0,30987.0,0.13632608]
[1609829122836,2.50638885,31019.0,30987.0,0.13632608]
[1609829123036,2.22723591,31010.0,30987.0,0.13632608]
[1609829123236,0.13632608,31002.0,30987.0,0.13632608]
[1609829123837,0.0977,31006.0,30986.0,4.5416]
[1609829124040,0.0977,31006.0,30966.0,8.8277]
[1609829124041,0.97169376,30991.0,30953.0,0.2954]
[1609829124239,0.12325,30991.0,30967.0,4.8786]
[1609829125241,0.12325,30991.0,30990.0,0.13632608]
[1609829126244,0.12325,30991.0,30990.0,4.02072608]
[1609829127647,0.84645377,31016.0,30990.0,4.02072608]
[1609829127848,0.84631709,31017.0,30990.0,0.13632608]
[1609829128047,0.271,31015.0,30990.0,0.13632608]
[1609829129049,0.84631709,31017.0,30998.0,4.8791]
[1609829129252,0.84631709,31017.0,31016.0,0.13632608]
[1609829129650,0.94341709,31017.0,31016.0,0.13632608]
[1609829129851,4.94391709,31017.0,30995.0,4.7449]
[1609829130051,5.03644709,31017.0,30995.0,4.7449]
[1609829130956,4.19013,31017.0,30995.0,4.7449]
[1609829131155,0.18963,31017.0,30997.0,0.13632608]
[1609829131355,0.18963,31017.0,31000.0,5.3557]
[1609829132458,0.09253,31017.0,31000.0,5.3557]
[1609829133258,0.09253,31017.0,31010.0,0.13632608]
[1609829133658,0.09253,31017.0,30989.0,0.12]
[1609829133861,0.09253,31017.0,31013.0,3.6389]
[1609829133862,0.14319,31017.0,31013.0,3.6389]
[1609829135160,0.14319,31017.0,31016.0,0.13632608]
[1609829136263,0.14319,31017.0,31001.0,3.8588]
[1609829137065,0.14319,31017.0,30989.0,0.12]
[1609829137262,0.13632608,31016.0,31007.0,0.13632608]
[1609829138666,0.13632608,31016.0,31010.0,4.4145]
[1609829139165,0.13632608,31016.0,31015.0,0.13632608]
[1609829139366,0.13632608,31016.0,30989.0,0.12]
[1609829139569,0.13632608,31016.0,30987.0,4.5454]
[1609829140869,0.23172608,31016.0,30987.0,4.5454]
[1609829141269,0.14319,31017.0,31001.0,0.13632608]
[1609829141669,0.0977,31021.0,31001.0,0.13632608]
[1609829141970,0.0977,31021.0,31003.0,5.05]
[1609829143274,0.13632608,31004.0,31003.0,5.05]
[1609829143474,0.10892,31004.0,31003.0,5.05]
[1609829144474,0.09168,31014.0,31003.0,5.05]
[1609829145275,0.09168,31014.0,31013.0,0.13632608]
[1609829145478,0.09168,31014.0,31003.0,5.05]
[1609829146779,0.09168,31014.0,30975.0,0.2779]
[1609829146980,0.09168,31014.0,30983.0,4.1968]
[1609829147179,0.09168,31014.0,30999.0,0.13632608]
[1609829147978,0.09168,31014.0,30997.0,3.6988]
[1609829149280,0.13632608,31014.0,31013.0,0.13632608]
[1609829149480,0.23426608,31014.0,31013.0,0.13632608]
[1609829150981,0.23426608,31014.0,31011.0,3.6784]
[1609829153084,0.09794,31014.0,31011.0,3.6784]
[1609829153588,0.09794,31014.0,31013.0,0.13632608]
[1609829154391,0.2795,31023.0,31013.0,0.13632608]
[1609829154990,0.2795,31023.0,31011.0,3.6784]
[1609829155192,0.37668,31023.0,31011.0,3.6784]
[1609829155592,0.13632608,31012.0,31011.0,3.6784]
[1609829155793,0.13632608,31012.0,31008.0,0.13632608]
[1609829155994,0.37668,31023.0,31011.0,4.3972]
[1609829156195,0.37668,31023.0,31008.0,0.13632608]
[1609829156395,0.09718,31023.0,31022.0,4.3352]
[1609829156595,8e-05,31023.0,31022.0,4.3352]
[1609829156794,0.84374116,31041.0,31012.0,0.098]
[1609829156795,0.84374116,31041.0,31012.0,0.23298]
[1609829156996,0.84374116,31041.0,31035.0,4.2736]
[1609829157196,0.2983,31059.0,31035.0,4.2736]
[1609829157595,0.2983,31059.0,31056.0,0.13632608]
[1609829157997,0.2983,31059.0,31058.0,4.4008]
[1609829158399,0.84234482,31067.0,31058.0,4.4008]
[1609829159201,0.57858131,31066.0,31058.0,4.4008]
[1609829159400,0.72627131,31066.0,31058.0,4.4008]
[1609829159601,0.13632608,31059.0,31046.0,0.13632608]
[1609829159801,0.22760608,31059.0,31046.0,0.13632608]
[1609829160303,0.22760608,31059.0,31047.0,4.8004]
[1609829161705,0.09128,31059.0,31052.0,0.13632608]
[1609829161905,0.09128,31059.0,31047.0,4.8004]
[1609829162105,0.09128,31059.0,31019.0,0.12378]
[1609829162305,0.09128,31059.0,31034.0,5.398]
[1609829163105,0.0965,31058.0,31034.0,5.398]
[1609829163706,0.13632608,31035.0,31034.0,5.398]
[1609829163907,0.1135,31035.0,31034.0,5.398]
[1609829164109,0.1135,31035.0,31019.0,0.12378]
[1609829164308,0.1135,31035.0,31024.0,4.0093]
[1609829165612,0.1135,31035.0,31034.0,0.13632608]
[1609829166510,0.1135,31035.0,31034.0,0.87452608]
[1609829167612,0.1102,31035.0,31034.0,0.87452608]
[1609829168311,0.13632608,31054.0,31034.0,0.87452608]
[1609829168912,0.09128,31059.0,31034.0,0.87452608]
[1609829169113,0.2836,31074.0,31034.0,0.13632608]
[1609829169312,0.2836,31074.0,31046.0,4.1274]
[1609829169713,0.13632608,31060.0,31053.0,0.13632608]
[1609829171617,5.1729,31070.0,31038.0,3.8685]
[1609829172217,5.1729,31070.0,31044.0,0.13632608]
[1609829172417,0.0971,31065.0,31044.0,0.13632608]
[1609829172618,0.0971,31065.0,31038.0,3.8685]
[1609829174222,0.13632608,31039.0,31038.0,3.8685]
[1609829174422,0.24066608,31039.0,31038.0,3.8685]
[1609829174925,0.10434,31039.0,31038.0,3.8685]
[1609829175926,0.1313,31043.0,31038.0,3.8685]
[1609829176126,0.1313,31043.0,31026.0,0.22277]
[1609829176324,0.1313,31043.0,31042.0,0.13632608]
[1609829176525,0.1213,31043.0,31042.0,5.49332608]
[1609829176726,0.0774,31043.0,31042.0,5.49332608]
[1609829176927,0.0774,31043.0,31042.0,0.13632608]
[1609829178629,0.0774,31043.0,31042.0,5.33962608]
[1609829178829,0.0774,31043.0,31042.0,0.13632608]
[1609829180532,0.0774,31043.0,31040.0,3.7869]
[1609829181233,0.14769,31066.0,31040.0,3.7869]
[1609829181634,0.69134149,31070.0,31040.0,3.7869]
[1609829181833,0.096,31069.0,31040.0,3.7869]
[1609829182036,0.19465,31069.0,31040.0,3.7869]
[1609829182235,0.13632608,31062.0,31061.0,0.13632608]
[1609829182435,0.26546608,31062.0,31061.0,0.13632608]
[1609829182935,0.26546608,31062.0,31059.0,4.8719]
[1609829183542,0.12914,31062.0,31059.0,4.8719]
[1609829184340,0.12914,31062.0,31061.0,0.13632608]
[1609829184940,0.12914,31062.0,31061.0,4.74412608]
[1609829185943,0.07419,31069.0,31061.0,4.74412608]
[1609829186343,9e-05,31069.0,31068.0,0.13632608]
[1609829186544,0.01143109,31078.0,31068.0,0.84512608]
[1609829186744,0.69070821,31098.0,31068.0,0.13632608]
[1609829186942,0.69070821,31098.0,31082.0,5.0306]
[1609829187644,0.69070821,31098.0,31068.0,0.13632608]
[1609829187843,0.44880821,31098.0,31097.0,4.3383]
[1609829188045,0.32650821,31098.0,31097.0,4.3383]
[1609829188250,0.0979,31098.0,31097.0,4.47462608]
[1609829188444,0.84347452,31109.0,31097.0,4.47462608]
[1609829188845,0.69797452,31109.0,31097.0,4.47462608]
[1609829189046,0.77040623,31129.0,31097.0,4.47462608]
[1609829189244,0.48220623,31129.0,31117.0,4.8501]
[1609829189647,0.48220623,31129.0,31102.0,0.12518]
[1609829189846,0.11573,31129.0,31124.0,3.6046]
[1609829190046,0.11213,31129.0,31124.0,3.6046]
[1609829190448,0.11213,31129.0,31128.0,0.13632608]
[1609829190847,0.95206287,31149.0,31128.0,0.13632608]
[1609829191047,0.95206287,31149.0,31123.0,0.10975]
[1609829191248,0.12936,31145.0,31123.0,0.10975]
[1609829191447,0.12936,31145.0,31125.0,4.1176]
[1609829191646,4.765e-05,31132.0,31125.0,4.1176]
[1609829192249,1.06628757,31154.0,31123.0,0.10975]
[1609829192448,1.06628757,31154.0,31144.0,4.6489]
[1609829192648,1.04708757,31154.0,31144.0,4.77473]
[1609829193647,1.04708757,31154.0,31145.0,0.0968]
[1609829194049,1.04708757,31154.0,31144.0,4.77473]
[1609829194249,1.04708757,31154.0,31144.0,0.12583]
[1609829194450,1.04708757,31154.0,31153.0,0.13632608]
[1609829194849,1.04708757,31154.0,31144.0,0.12583]
[1609829195050,1.04708757,31154.0,31145.0,3.8056]
[1609829196454,0.10803,31159.0,31153.0,0.13632608]
[1609829196651,0.10803,31159.0,31145.0,3.8056]
[1609829197754,0.10803,31159.0,31145.0,3.0278]
[1609829198352,0.13632608,31158.0,31152.0,0.13632608]
[1609829198552,0.13632608,31158.0,31145.0,3.0278]
[1609829198954,0.10803,31159.0,31145.0,3.0278]
[1609829199352,0.10803,31159.0,31137.0,0.09051]
[1609829199553,0.10803,31159.0,31143.0,4.1178]
[1609829199752,0.2971,31167.0,31143.0,4.23406]
[1609829199954,0.2971,31167.0,31149.0,4.9964]
[1609829200353,0.2971,31167.0,31166.0,0.13632608]
[1609829201955,0.2971,31167.0,31165.0,3.7122]
[1609829202356,0.2971,31167.0,31166.0,0.13632608]
[1609829202556,0.2971,31167.0,31165.0,3.7122]
[1609829203357,0.1721,31167.0,31165.0,3.7122]
[1609829204358,0.13632608,31166.0,31165.0,3.7122]
[1609829205059,0.1721,31167.0,31165.0,3.7122]
[1609829208561,0.1721,31167.0,31163.0,0.13632608]
[1609829208962,0.1721,31167.0,31151.0,0.13081]
[1609829209162,0.1721,31167.0,31143.0,0.11626]
[1609829209363,0.1721,31167.0,31129.0,5.3836]
[1609829210363,0.1721,31167.0,31166.0,0.13632608]
[1609829210564,0.1721,31167.0,31123.0,0.10975]
[1609829210764,0.1721,31167.0,31142.0,5.1595]
[1609829212363,0.30842608,31167.0,31133.0,0.14603]
[1609829214466,0.30842608,31167.0,31166.0,0.13632608]
[1609829214664,0.1721,31167.0,31147.0,4.9114]
[1609829216366,0.1721,31167.0,31164.0,0.13632608]
[1609829216969,0.1721,31167.0,31147.0,4.9114]
[1609829218370,0.13632608,31161.0,31160.0,0.13632608]
[1609829218770,0.11149,31161.0,31136.0,5.3198]
[1609829219872,0.1721,31167.0,31136.0,5.3198]
[1609829220073,0.1721,31167.0,31133.0,0.14603]
[1609829220273,0.1721,31167.0,31147.0,5.2156]
[1609829220475,0.1721,31167.0,31166.0,0.13632608]
[1609829221976,0.1721,31167.0,31165.0,4.4674]
[1609829222574,0.11281,31179.0,31166.0,0.13632608]
[1609829222975,0.11281,31179.0,31165.0,4.4674]
[1609829224579,0.11281,31179.0,31178.0,0.13632608]
[1609829227282,0.13632608,31189.0,31183.0,4.328]
[1609829227481,0.097,31213.0,31183.0,4.328]
[1609829227682,0.2782,31212.0,31183.0,4.328]
[1609829228585,0.13632608,31202.0,31185.0,0.13632608]
[1609829228785,0.2782,31212.0,31185.0,0.13632608]
[1609829229185,0.0958,31237.0,31185.0,0.13632608]
[1609829229384,0.2878,31233.0,31185.0,0.13632608]
[1609829229586,0.39449,31233.0,31185.0,0.13632608]
[1609829229785,1.06135064,31233.0,31185.0,0.13632608]
[1609829230386,1.06135064,31233.0,31202.0,5.1452]
[1609829230586,0.13632608,31223.0,31222.0,0.13632608]
[1609829230789,0.24018608,31223.0,31202.0,5.1452]
[1609829232591,0.13632608,31203.0,31202.0,5.28152608]
[1609829232790,0.27463608,31203.0,31202.0,0.13632608]
[1609829233191,0.13831,31203.0,31185.0,3.9397]
[1609829234291,0.13831,31203.0,31174.0,0.10958]
[1609829234491,0.13632608,31194.0,31190.0,0.13632608]
[1609829234695,0.23917608,31194.0,31169.0,5.2006]
[1609829235193,0.10285,31194.0,31169.0,5.2006]
[1609829236592,0.10285,31194.0,31187.0,0.13632608]
[1609829236793,0.10285,31194.0,31169.0,5.2006]
[1609829238495,0.13632608,31189.0,31188.0,0.13632608]
[1609829238694,0.10285,31194.0,31188.0,0.13632608]
[1609829238895,0.10285,31194.0,31188.0,4.29682608]
[1609829239095,0.13831,31203.0,31188.0,4.29682608]
[1609829239296,0.68615525,31213.0,31188.0,4.1605]
[1609829240405,0.68615525,31213.0,31184.0,0.13398]
[1609829240597,0.78832525,31213.0,31212.0,0.13632608]
[1609829241599,0.10217,31213.0,31212.0,0.13632608]
[1609829244503,0.10217,31213.0,31212.0,0.70492608]
[1609829245504,0.10217,31213.0,31212.0,0.5686]
[1609829245706,0.10386,31223.0,31212.0,0.5686]
[1609829245905,0.12025,31213.0,31212.0,0.5686]
[1609829246607,0.12025,31213.0,31212.0,0.70492608]
[1609829248309,0.12025,31213.0,31212.0,0.13632608]
[1609829249510,0.12025,31213.0,31197.0,4.9602]
[1609829250511,0.12025,31213.0,31184.0,0.13398]
[1609829250710,0.12025,31213.0,31177.0,0.11007]
[1609829250911,0.09839,31213.0,31175.0,4.0173]
[1609829251511,0.13632608,31207.0,31175.0,4.0173]
[1609829253112,0.13632608,31207.0,31167.0,0.09229]
[1609829253313,0.13632608,31207.0,31182.0,4.0652]
[1609829253513,0.09839,31213.0,31206.0,0.13632608]
[1609829253913,0.09839,31213.0,31208.0,5.1479]
[1609829255515,0.09839,31213.0,31212.0,0.13632608]
[1609829255715,0.09839,31213.0,31208.0,5.1479]
[1609829256114,0.02915115,31216.0,31208.0,5.1479]
[1609829256914,0.02915115,31216.0,31186.0,0.10575]
[1609829257115,0.13605115,31216.0,31186.0,0.10575]
[1609829257514,0.13605115,31216.0,31179.0,0.14532]
[1609829257914,0.13605115,31216.0,31197.0,0.13632608]
[1609829259917,0.1069,31216.0,31215.0,0.13632608]
[1609829262217,0.00978078,31224.0,31215.0,0.13632608]
[1609829262719,0.02915259,31229.0,31215.0,0.13632608]
[1609829263723,0.10669,31233.0,31215.0,0.13632608]
[1609829263921,0.00977802,31236.0,31220.0,0.13632608]
[1609829265624,0.70166192,31241.0,31220.0,0.13632608]
[1609829266032,0.70166192,31241.0,31235.0,0.13632608]
[1609829266830,0.70166192,31241.0,31217.0,4.9611]
[1609829267227,0.81140192,31241.0,31217.0,4.9611]
[1609829267425,0.81140192,31241.0,31196.0,0.09176]
[1609829267625,0.81140192,31241.0,31192.0,4.7388]
[1609829267824,0.81140192,31241.0,31188.0,0.14061]
[1609829268024,0.81140192,31241.0,31204.0,5.311]
[1609829268631,0.81140192,31241.0,31240.0,0.13632608]
[1609829272138,0.12092078,31241.0,31240.0,0.13632608]
[1609829273343,0.12092078,31241.0,31233.0,4.3626]
[1609829273344,0.12092078,31241.0,31221.0,0.11432]
[1609829274746,0.01118078,31241.0,31240.0,0.13632608]
[1609829278249,0.10677,31249.0,31240.0,0.13632608]
[1609829278750,0.10677,31249.0,31248.0,0.13632608]
[1609829279951,0.13632608,31264.0,31248.0,0.13632608]
[1609829280652,0.13632608,31264.0,31263.0,0.13632608]
[1609829282253,0.13632608,31264.0,31248.0,4.5891]
[1609829282454,0.27889608,31264.0,31231.0,0.1093]
[1609829282655,0.27889608,31264.0,31262.0,0.13632608]
[1609829283357,0.27889608,31264.0,31245.0,4.4729]
[1609829284457,0.27889608,31264.0,31230.0,0.0958]
[1609829284658,0.14257,31264.0,31255.0,0.13632608]
[1609829286662,0.13632608,31256.0,31245.0,4.2149]
[1609829287061,0.27211608,31256.0,31245.0,4.2149]
[1609829287463,0.27211608,31256.0,31237.0,0.13632608]
[1609829288465,0.13579,31256.0,31221.0,0.11432]
[1609829288665,4.74249,31256.0,31208.0,4.6155]
[1609829289067,0.13632608,31242.0,31208.0,4.6155]
[1609829289266,0.22997608,31242.0,31208.0,4.6155]
[1609829289866,0.09365,31242.0,31208.0,4.6155]
[1609829291168,0.09365,31242.0,31240.0,0.13632608]
[1609829291369,0.09365,31242.0,31216.0,0.14585]
[1609829293173,0.09365,31242.0,31233.0,0.13632608]
[1609829293877,0.09365,31242.0,31233.0,0.04102608]
[1609829294076,0.0955,31241.0,31216.0,0.14585]
[1609829294280,0.09365,31242.0,31216.0,0.14585]
[1609829294480,0.096,31248.0,31216.0,0.14585]
[1609829294878,0.8506,31248.0,31216.0,0.14585]
[1609829295078,0.13632608,31228.0,31222.0,0.13632608]
[1609829295479,0.13632608,31228.0,31216.0,0.14585]
[1609829295881,0.13632608,31228.0,31205.0,0.1459]
[1609829296080,0.13632608,31228.0,31198.0,3.6429]
[1609829297083,0.11849,31229.0,31198.0,3.6429]
[1609829297281,0.11849,31229.0,31227.0,0.13632608]
[1609829297480,0.11849,31229.0,31213.0,0.10524]
[1609829299081,0.11849,31229.0,31228.0,0.13632608]
[1609829299481,0.11849,31229.0,31213.0,0.10524]
[1609829300584,3.9399,31242.0,31213.0,0.10524]
[1609829301784,3.9399,31242.0,31206.0,0.13221]
[1609829301984,4.07714,31242.0,31206.0,0.13221]
[1609829303186,0.13632608,31217.0,31206.0,0.13221]
[1609829303585,0.13632608,31217.0,31198.0,0.09243]
[1609829303786,0.13632608,31217.0,31186.0,6.26551848]
[1609829303787,0.13632608,31217.0,31189.0,1.93861831]
[1609829304387,0.13632608,31217.0,31186.0,3.8704]
[1609829304788,0.71632608,31217.0,31186.0,3.8704]
[1609829305188,0.58,31217.0,31212.0,0.13632608]
[1609829305389,0.58,31217.0,31195.0,0.13405]
[1609829309195,0.13632608,31204.0,31200.0,0.13632608]
[1609829311498,0.13632608,31204.0,31195.0,0.13405]
[1609829311699,0.13632608,31204.0,31182.0,5.0959]
[1609829312100,0.7072,31202.0,31182.0,5.0959]
[1609829313802,0.23616,31211.0,31172.0,1.94361042]
[1609829314002,0.23616,31211.0,31180.0,3.6747]
[1609829314202,0.23616,31211.0,31180.0,3.77643]
[1609829315203,0.23616,31211.0,31198.0,0.13632608]
[1609829315506,0.14016,31211.0,31198.0,0.13632608]
[1609829315708,0.69406536,31224.0,31198.0,0.13632608]
[1609829315905,0.69406536,31224.0,31197.0,0.12982]
[1609829316303,0.69406536,31224.0,31200.0,4.7354]
[1609829316505,0.6927492,31225.0,31200.0,4.7354]
[1609829317105,0.70358517,31237.0,31200.0,4.7354]
[1609829317106,0.69256936,31237.0,31200.0,4.7354]
[1609829317704,0.69256936,31237.0,31232.0,0.13632608]
[1609829318709,0.69256936,31237.0,31233.0,0.628]
[1609829318908,0.69281933,31246.0,31233.0,0.628]
[1609829319308,0.13579,31256.0,31233.0,0.628]
[1609829319507,0.6927773,31258.0,31233.0,0.628]
[1609829319706,0.6927773,31258.0,31225.0,0.13672]
[1609829319908,0.13632608,31247.0,31240.0,0.13632608]
[1609829320307,0.22719608,31247.0,31240.0,0.13632608]
[1609829321212,0.22719608,31247.0,31225.0,0.13672]
[1609829321812,0.09087,31247.0,31217.0,3.9408]
[1609829322313,0.13632608,31225.0,31224.0,0.13632608]
[1609829322913,0.13632608,31225.0,31217.0,3.9408]
[1609829323815,0.13632608,31225.0,31212.0,0.13146]
[1609829324216,0.12273,31229.0,31202.0,1.93284008]
[1609829324415,0.12273,31229.0,31228.0,0.13632608]
[1609829324615,0.13632608,31232.0,31218.0,0.14425]
[1609829324814,5.43027937,31261.0,31218.0,0.14425]
[1609829325416,0.0952,31248.0,31218.0,0.14425]
[1609829325618,4.2466,31247.0,31218.0,0.14425]
[1609829325817,4.38127,31247.0,31218.0,0.14425]
[1609829326217,4.38127,31247.0,31210.0,0.10952]
[1609829326418,0.13632608,31222.0,31210.0,0.10952]
[1609829326618,0.108,31226.0,31210.0,0.10952]
[1609829327620,0.108,31226.0,31204.0,4.2119]
[1609829328422,0.13632608,31212.0,31204.0,4.2119]
[1609829329024,0.13632608,31212.0,31200.0,0.13632608]
[1609829329226,0.09958,31218.0,31200.0,0.13632608]
[1609829330526,0.13632608,31210.0,31200.0,0.13632608]
[1609829331934,0.09958,31218.0,31200.0,0.13632608]
[1609829332427,0.13632608,31213.0,31200.0,0.13632608]
[1609829332628,0.13632608,31213.0,31193.0,3.885]
[1609829334131,0.0949,31212.0,31193.0,3.885]
[1609829334734,0.13632608,31208.0,31193.0,0.13632608]
[1609829336633,0.13632608,31204.0,31193.0,0.13632608]
[1609829338635,0.13738,31210.0,31199.0,0.13632608]
[1609829339638,0.09958,31218.0,31199.0,0.23472608]
[1609829339836,0.57777083,31228.0,31199.0,0.23472608]
[1609829340437,0.0957,31225.0,31199.0,0.23472608]
[1609829340738,0.13632608,31200.0,31199.0,0.23472608]
[1609829341641,0.13632608,31200.0,31199.0,0.0984]
[1609829342142,0.83472608,31200.0,31199.0,0.0984]
[1609829342544,0.13632608,31200.0,31199.0,0.0984]
[1609829343945,0.13632608,31200.0,31198.0,0.13632608]
[1609829344747,4.6539,31199.0,31198.0,0.13632608]
[1609829347450,0.13632608,31200.0,31198.0,0.13632608]
[1609829352657,0.12711,31201.0,31198.0,0.13632608]
[1609829352857,0.13632608,31207.0,31198.0,0.13632608]
[1609829353057,0.09084,31209.0,31198.0,0.13632608]
[1609829353257,0.57990049,31218.0,31198.0,0.13632608]
[1609829353958,4.62077613,31225.0,31198.0,0.13632608]
[1609829353959,0.58011298,31224.0,31198.0,0.13632608]
[1609829354862,0.13632608,31222.0,31206.0,0.13632608]
[1609829356262,0.13632608,31222.0,31197.0,0.12112]
[1609829356764,0.13632608,31214.0,31202.0,0.13632608]
[1609829360765,0.13632608,31207.0,31202.0,0.13632608]
[1609829361867,0.13632608,31207.0,31197.0,0.12112]
[1609829362066,0.13632608,31207.0,31189.0,0.12224]
[1609829362268,0.13632608,31207.0,31182.0,2.10686695]
[1609829362867,0.13632608,31207.0,31195.0,0.13632608]
[1609829364870,0.13632608,31199.0,31195.0,0.13632608]
[1609829366471,0.0968,31211.0,31195.0,0.13632608]
[1609829366874,0.13632608,31204.0,31201.0,0.13632608]
[1609829367070,0.13632608,31204.0,31193.0,0.12466]
[1609829367471,4.1729,31198.0,31182.0,0.13982]
[1609829367670,4.1729,31198.0,31179.0,1.98439761]
[1609829367870,0.13632608,31204.0,31179.0,1.98439761]
[1609829368070,0.13632608,31204.0,31179.0,2.10377761]
[1609829368272,0.0965,31203.0,31179.0,2.10377761]
[1609829368471,0.0965,31203.0,31179.0,5.95507761]
[1609829368871,0.13632608,31190.0,31179.0,5.95507761]
[1609829369073,0.13632608,31190.0,31179.0,3.97068]
[1609829369273,0.10131,31194.0,31179.0,3.97068]
[1609829370272,0.14694,31205.0,31179.0,3.97068]
[1609829370673,0.14694,31205.0,31179.0,0.11938]
[1609829370872,0.13632608,31202.0,31196.0,0.13632608]
[1609829372876,0.13632608,31202.0,31201.0,0.13632608]